[Event "Late-Titled-Tuesday-Blitz-August-29-2023"]
[Site "Chess.com"]
[Date "2023.08.29"]
[Round "11"]
[White "SHIVACalypso"]
[Black "Dr_crypt"]
[Result "0-1"]
[WhiteElo "2481"]
[BlackElo "2348"]
[TimeControl "180+1"]
[EndTime "16:01:51 PDT"]
[Termination "Dr_crypt won by resignation"]

1. e4 {[%clk 0:03:00.9]} 1... d5 {[%clk 0:02:59.8]} 2. exd5 {[%clk 0:02:56.3]}
2... Qxd5 {[%clk 0:03:00.4]} 3. d4 {[%clk 0:02:56.1]} 3... Nc6 {[%clk
0:02:57.5]} 4. Nf3 {[%clk 0:02:54.6]} 4... Bg4 {[%clk 0:02:55.7]} 5. Nc3 {[%clk
0:02:48.8]} 5... Bxf3 {[%clk 0:02:54.4]} 6. Nxd5 {[%clk 0:02:48.3]} 6... Bxd1
{[%clk 0:02:53.8]} 7. Nxc7+ {[%clk 0:02:48.7]} 7... Kd8 {[%clk 0:02:52.6]} 8.
Nxa8 {[%clk 0:02:48.9]} 8... Bg4 {[%clk 0:02:29.1]} 9. Bf4 {[%clk 0:02:41]} 9...
e5 {[%clk 0:02:27.6]} 10. dxe5 {[%clk 0:02:37.7]} 10... Be6 {[%clk 0:02:25]} 11.
O-O-O+ {[%clk 0:02:25.8]} 11... Kc8 {[%clk 0:02:24.2]} 12. Bb5 {[%clk
0:02:26.4]} 12... Bc5 {[%clk 0:02:16.9]} 13. Bg5 {[%clk 0:02:07.3]} 13... Nge7
{[%clk 0:02:08.4]} 14. c3 {[%clk 0:01:47.3]} 14... Kb8 {[%clk 0:01:49.2]} 15. b4
{[%clk 0:01:45.9]} 15... Bxf2 {[%clk 0:01:46.3]} 16. Rhf1 {[%clk 0:01:32.5]}
16... h6 {[%clk 0:01:45.9]} 17. Bxc6 {[%clk 0:00:56.5]} 17... Nxc6 {[%clk
0:01:42.7]} 18. Rxf2 {[%clk 0:00:50]} 18... hxg5 {[%clk 0:01:41.6]} 19. Nb6
{[%clk 0:00:50.9]} 19... axb6 {[%clk 0:01:40.6]} 20. h3 {[%clk 0:00:51.7]} 20...
Nxe5 {[%clk 0:01:39.4]} 21. Kb2 {[%clk 0:00:42.5]} 21... Kc7 {[%clk 0:01:36.7]}
22. Re2 {[%clk 0:00:41.5]} 22... f6 {[%clk 0:01:34.5]} 23. Rd4 {[%clk
0:00:27.8]} 23... b5 {[%clk 0:01:28.9]} 24. Kc1 {[%clk 0:00:21.1]} 24... Rh4
{[%clk 0:01:25.3]} 25. Rxh4 {[%clk 0:00:19.7]} 25... gxh4 {[%clk 0:01:25.9]} 26.
Re4 {[%clk 0:00:17.6]} 26... g5 {[%clk 0:01:23.8]} 27. Re2 {[%clk 0:00:16.6]}
27... Kd6 {[%clk 0:01:15.7]} 28. Rf2 {[%clk 0:00:11.8]} 28... Nd3+ {[%clk
0:01:12.9]} 0-1

[Event "Late-Titled-Tuesday-Blitz-August-29-2023"]
[Site "Chess.com"]
[Date "2023.08.29"]
[Round "11"]
[White "Msb2"]
[Black "enriquetejedor"]
[Result "1-0"]
[WhiteElo "3023"]
[BlackElo "2766"]
[TimeControl "180+1"]
[EndTime "16:01:58 PDT"]
[Termination "Msb2 won on time"]

1. d4 {[%clk 0:03:00.9]} 1... d5 {[%clk 0:02:58.6]} 2. c4 {[%clk 0:03:01.3]}
2... c6 {[%clk 0:02:58.4]} 3. Nf3 {[%clk 0:03:01.8]} 3... Nf6 {[%clk 0:02:58.6]}
4. Nc3 {[%clk 0:03:02.7]} 4... dxc4 {[%clk 0:02:57.2]} 5. e4 {[%clk 0:03:03.2]}
5... b5 {[%clk 0:02:44.2]} 6. Qc2 {[%clk 0:03:03.3]} 6... e6 {[%clk 0:02:35.2]}
7. Be2 {[%clk 0:03:03.1]} 7... Bb7 {[%clk 0:02:22.7]} 8. O-O {[%clk 0:03:03.2]}
8... Nbd7 {[%clk 0:02:11.8]} 9. b3 {[%clk 0:03:03.2]} 9... b4 {[%clk 0:02:08.5]}
10. e5 {[%clk 0:03:02.2]} 10... bxc3 {[%clk 0:01:57.7]} 11. exf6 {[%clk
0:03:02.2]} 11... gxf6 {[%clk 0:01:48.6]} 12. bxc4 {[%clk 0:03:02.4]} 12... Qa5
{[%clk 0:01:42.1]} 13. Rb1 {[%clk 0:02:58.5]} 13... Ba6 {[%clk 0:01:40.1]} 14.
Qe4 {[%clk 0:02:48.2]} 14... Rc8 {[%clk 0:01:37.6]} 15. Bf4 {[%clk 0:02:25]}
15... Ba3 {[%clk 0:01:23.3]} 16. Rb3 {[%clk 0:02:15.9]} 16... f5 {[%clk
0:01:17]} 17. Qe3 {[%clk 0:02:14.1]} 17... Bb2 {[%clk 0:01:15.1]} 18. Bd6 {[%clk
0:02:10.7]} 18... Rg8 {[%clk 0:01:04]} 19. Ng5 {[%clk 0:01:39.5]} 19... Rg6
{[%clk 0:00:41.6]} 20. Bh5 {[%clk 0:01:35.9]} 20... f4 {[%clk 0:00:26.4]} 21.
Bxg6 {[%clk 0:01:32.3]} 21... hxg6 {[%clk 0:00:18.6]} 22. Qxf4 {[%clk
0:01:32.2]} 22... Qf5 {[%clk 0:00:16.1]} 23. Qh4 {[%clk 0:01:32.7]} 23... Nf6
{[%clk 0:00:11.1]} 24. Ne4 {[%clk 0:01:24.6]} 24... Ng8 {[%clk 0:00:03.9]} 25.
Bc5 {[%clk 0:01:17.5]} 25... Rd8 {[%clk 0:00:02.4]} 26. Nd6+ {[%clk 0:01:12.8]}
26... Rxd6 {[%clk 0:00:02.5]} 27. Rb8+ {[%clk 0:01:13.5]} 1-0

[Event "Late-Titled-Tuesday-Blitz-August-29-2023"]
[Site "Chess.com"]
[Date "2023.08.29"]
[Round "11"]
[White "19912131712118"]
[Black "Semetey"]
[Result "0-1"]
[WhiteElo "2439"]
[BlackElo "2601"]
[TimeControl "180+1"]
[EndTime "16:02:13 PDT"]
[Termination "Semetey won by resignation"]

1. e4 {[%clk 0:03:00.9]} 1... e5 {[%clk 0:02:54]} 2. Nf3 {[%clk 0:03:00.4]} 2...
Nc6 {[%clk 0:02:54.3]} 3. d4 {[%clk 0:03:00.2]} 3... exd4 {[%clk 0:02:54]} 4.
Nxd4 {[%clk 0:03:00.7]} 4... Qf6 {[%clk 0:02:54.2]} 5. Be3 {[%clk 0:02:59.4]}
5... Bc5 {[%clk 0:02:54.3]} 6. c3 {[%clk 0:02:59.1]} 6... Nge7 {[%clk
0:02:53.5]} 7. Bb5 {[%clk 0:02:56.7]} 7... O-O {[%clk 0:02:52.7]} 8. O-O {[%clk
0:02:56.1]} 8... b6 {[%clk 0:02:51.7]} 9. f4 {[%clk 0:02:45.9]} 9... Bb7 {[%clk
0:02:43.4]} 10. e5 {[%clk 0:02:35.8]} 10... Qh6 {[%clk 0:02:42.8]} 11. Qe2
{[%clk 0:02:13]} 11... Nd5 {[%clk 0:02:42.1]} 12. Nf5 {[%clk 0:01:59.9]} 12...
Qe6 {[%clk 0:02:39.9]} 13. Bxc5 {[%clk 0:01:52.9]} 13... bxc5 {[%clk 0:02:37.8]}
14. Bd3 {[%clk 0:01:52.2]} 14... f6 {[%clk 0:02:32]} 15. Qg4 {[%clk 0:01:37.6]}
15... g6 {[%clk 0:02:27.6]} 16. Nh6+ {[%clk 0:01:37]} 16... Kg7 {[%clk
0:02:25.5]} 17. f5 {[%clk 0:01:12.9]} 17... Qxe5 {[%clk 0:02:23.9]} 18. fxg6
{[%clk 0:01:06.1]} 18... Qe3+ {[%clk 0:02:23.6]} 19. Kh1 {[%clk 0:01:04.5]}
19... Qxh6 {[%clk 0:02:15.4]} 20. Qxd7+ {[%clk 0:00:50.8]} 20... Nde7 {[%clk
0:02:08.1]} 21. Qxc7 {[%clk 0:00:44.3]} 21... Rab8 {[%clk 0:01:55]} 22. gxh7
{[%clk 0:00:43.1]} 22... Kh8 {[%clk 0:01:52.3]} 23. Na3 {[%clk 0:00:41.8]} 23...
Nd5 {[%clk 0:01:44.7]} 24. Qd6 {[%clk 0:00:32.7]} 24... Ne3 {[%clk 0:01:44.2]}
25. Rf3 {[%clk 0:00:29.7]} 25... Ne5 {[%clk 0:01:43.8]} 26. Rg3 {[%clk
0:00:25.4]} 26... N3g4 {[%clk 0:01:30.1]} 27. h3 {[%clk 0:00:19.1]} 27... Nf2+
{[%clk 0:01:26.2]} 28. Kg1 {[%clk 0:00:18.5]} 28... Nfxd3 {[%clk 0:01:22.5]} 29.
Rxd3 {[%clk 0:00:15.2]} 29... Nxd3 {[%clk 0:01:21]} 30. Qxd3 {[%clk 0:00:15.7]}
30... Qxh7 {[%clk 0:01:20.5]} 31. Qe2 {[%clk 0:00:12.8]} 31... Rbe8 {[%clk
0:01:18.9]} 32. Qf2 {[%clk 0:00:11.4]} 32... Qe4 {[%clk 0:01:16.7]} 33. Rd1
{[%clk 0:00:10.6]} 33... Re5 {[%clk 0:01:09.2]} 34. Nc2 {[%clk 0:00:08.8]} 34...
Rf5 {[%clk 0:01:08.4]} 0-1

[Event "Late-Titled-Tuesday-Blitz-August-29-2023"]
[Site "Chess.com"]
[Date "2023.08.29"]
[Round "11"]
[White "NigelDwarf"]
[Black "Valeron87"]
[Result "0-1"]
[WhiteElo "2529"]
[BlackElo "2475"]
[TimeControl "180+1"]
[EndTime "16:02:35 PDT"]
[Termination "Valeron87 won by checkmate"]

1. Nf3 {[%clk 0:03:00.9]} 1... d5 {[%clk 0:02:59.4]} 2. c4 {[%clk 0:03:00.7]}
2... e6 {[%clk 0:02:59.3]} 3. b3 {[%clk 0:02:59.4]} 3... Nf6 {[%clk 0:02:57.4]}
4. Bb2 {[%clk 0:02:59.3]} 4... a5 {[%clk 0:02:58.1]} 5. e3 {[%clk 0:02:53.6]}
5... a4 {[%clk 0:02:58.2]} 6. bxa4 {[%clk 0:02:53.8]} 6... Be7 {[%clk
0:02:54.7]} 7. g4 {[%clk 0:02:51.9]} 7... O-O {[%clk 0:02:52.5]} 8. g5 {[%clk
0:02:51.9]} 8... Ne4 {[%clk 0:02:52.7]} 9. h4 {[%clk 0:02:45.5]} 9... c5 {[%clk
0:02:52]} 10. Qc2 {[%clk 0:02:44.7]} 10... Nc6 {[%clk 0:02:50.7]} 11. a3 {[%clk
0:02:41.6]} 11... f5 {[%clk 0:02:42.2]} 12. gxf6 {[%clk 0:02:37.2]} 12... Bxf6
{[%clk 0:02:40.9]} 13. Ng5 {[%clk 0:02:32]} 13... Bxb2 {[%clk 0:02:34.1]} 14.
Qxb2 {[%clk 0:02:21.1]} 14... Nxf2 {[%clk 0:02:13.7]} 15. Rg1 {[%clk 0:02:18.3]}
15... d4 {[%clk 0:02:14]} 16. Qc2 {[%clk 0:02:06.9]} 16... g6 {[%clk 0:01:41.3]}
17. h5 {[%clk 0:01:38.2]} 17... dxe3 {[%clk 0:01:23.1]} 18. Nxh7 {[%clk
0:01:28.3]} 18... exd2+ {[%clk 0:00:40.8]} 19. Nxd2 {[%clk 0:01:25.4]} 19... Rf5
{[%clk 0:00:40.7]} 20. hxg6 {[%clk 0:00:13.7]} 20... Qd4 {[%clk 0:00:40.2]} 21.
Nb3 {[%clk 0:00:08.8]} 21... Qe3+ {[%clk 0:00:38]} 22. Be2 {[%clk 0:00:06.8]}
22... Ne4 {[%clk 0:00:22.4]} 23. Rf1 {[%clk 0:00:05.2]} 23... Rxf1+ {[%clk
0:00:21.3]} 24. Kxf1 {[%clk 0:00:05.4]} 24... Qf2# {[%clk 0:00:22]} 0-1

[Event "Late-Titled-Tuesday-Blitz-August-29-2023"]
[Site "Chess.com"]
[Date "2023.08.29"]
[Round "11"]
[White "Zkid"]
[Black "BogdanDeac"]
[Result "0-1"]
[WhiteElo "2848"]
[BlackElo "3022"]
[TimeControl "180+1"]
[EndTime "16:02:37 PDT"]
[Termination "BogdanDeac won by resignation"]

1. e4 {[%clk 0:03:00.9]} 1... e5 {[%clk 0:03:00]} 2. Nf3 {[%clk 0:03:01.1]} 2...
Nf6 {[%clk 0:03:00.7]} 3. d4 {[%clk 0:03:00.6]} 3... Nxe4 {[%clk 0:03:00.6]} 4.
dxe5 {[%clk 0:03:00.4]} 4... d5 {[%clk 0:03:00.6]} 5. Nbd2 {[%clk 0:03:00.5]}
5... Qd7 {[%clk 0:03:00.8]} 6. Nxe4 {[%clk 0:02:59.2]} 6... dxe4 {[%clk
0:03:00.8]} 7. Qxd7+ {[%clk 0:03:00.1]} 7... Nxd7 {[%clk 0:03:00.8]} 8. Ng5
{[%clk 0:02:58.4]} 8... Nxe5 {[%clk 0:03:00.9]} 9. Bf4 {[%clk 0:02:56.1]} 9...
Bd6 {[%clk 0:02:52.3]} 10. Nxe4 {[%clk 0:02:46.2]} 10... Nf3+ {[%clk 0:02:51.1]}
11. gxf3 {[%clk 0:02:35]} 11... Bxf4 {[%clk 0:02:51.6]} 12. Rd1 {[%clk
0:02:31.2]} 12... O-O {[%clk 0:02:41.6]} 13. Bc4 {[%clk 0:02:26.2]} 13... Bh3
{[%clk 0:02:40.7]} 14. Rg1 {[%clk 0:02:23.5]} 14... Rfe8 {[%clk 0:02:30]} 15.
Be2 {[%clk 0:02:18]} 15... Kf8 {[%clk 0:02:15.2]} 16. Rd5 {[%clk 0:02:13.1]}
16... g6 {[%clk 0:02:00.7]} 17. Nf6 {[%clk 0:02:00.4]} 17... Red8 {[%clk
0:01:18.7]} 18. Nxh7+ {[%clk 0:01:53.6]} 18... Kg7 {[%clk 0:01:17.9]} 19. Rh5
{[%clk 0:01:40.7]} 19... Rd2 {[%clk 0:00:53]} 20. Ng5 {[%clk 0:01:29.1]} 20...
Bf5 {[%clk 0:00:23.8]} 21. Rh7+ {[%clk 0:01:03.9]} 21... Kg8 {[%clk 0:00:23]}
22. Rh4 {[%clk 0:00:39.4]} 22... Bxg5 {[%clk 0:00:14.4]} 23. Rxg5 {[%clk
0:00:36.9]} 23... Rxc2 {[%clk 0:00:14.9]} 24. Bc4 {[%clk 0:00:20.5]} 24... Re8+
{[%clk 0:00:12.2]} 25. Kf1 {[%clk 0:00:18.9]} 25... Rxc4 {[%clk 0:00:12.1]} 0-1

[Event "Late-Titled-Tuesday-Blitz-August-29-2023"]
[Site "Chess.com"]
[Date "2023.08.29"]
[Round "11"]
[White "azikom"]
[Black "Sajkochess"]
[Result "1-0"]
[WhiteElo "2670"]
[BlackElo "2431"]
[TimeControl "180+1"]
[EndTime "16:02:41 PDT"]
[Termination "azikom won by checkmate"]

1. c4 {[%clk 0:02:58.9]} 1... Nf6 {[%clk 0:02:59.8]} 2. Nc3 {[%clk 0:02:58.5]}
2... e6 {[%clk 0:02:59.8]} 3. e4 {[%clk 0:02:58.1]} 3... e5 {[%clk 0:03:00.3]}
4. Nf3 {[%clk 0:02:55.4]} 4... Nc6 {[%clk 0:03:00.6]} 5. d4 {[%clk 0:02:54]}
5... exd4 {[%clk 0:03:00.8]} 6. Nxd4 {[%clk 0:02:54.4]} 6... Bb4 {[%clk
0:03:00.9]} 7. f3 {[%clk 0:02:54.2]} 7... O-O {[%clk 0:02:59.7]} 8. Bg5 {[%clk
0:02:51.1]} 8... Re8 {[%clk 0:02:49]} 9. Be2 {[%clk 0:02:48.6]} 9... Qe7 {[%clk
0:02:24.6]} 10. Nc2 {[%clk 0:02:46.1]} 10... Qe5 {[%clk 0:02:16.4]} 11. Qd2
{[%clk 0:02:43]} 11... Bxc3 {[%clk 0:01:58.3]} 12. bxc3 {[%clk 0:02:42.5]} 12...
d6 {[%clk 0:01:36.3]} 13. O-O {[%clk 0:02:37.7]} 13... h6 {[%clk 0:01:24.9]} 14.
Be3 {[%clk 0:02:33.7]} 14... Be6 {[%clk 0:01:17.7]} 15. Rab1 {[%clk 0:02:27.7]}
15... a6 {[%clk 0:00:45.6]} 16. Rxb7 {[%clk 0:02:26.5]} 16... Rec8 {[%clk
0:00:43.5]} 17. Nd4 {[%clk 0:02:23.8]} 17... Na5 {[%clk 0:00:42.4]} 18. Rb4
{[%clk 0:02:00.5]} 18... c5 {[%clk 0:00:41.3]} 19. Ra4 {[%clk 0:01:57.6]} 19...
Nxc4 {[%clk 0:00:16.9]} 20. Bxc4 {[%clk 0:01:52.4]} 20... Bxc4 {[%clk
0:00:03.4]} 21. Rxc4 {[%clk 0:01:50.8]} 21... cxd4 {[%clk 0:00:03]} 22. cxd4
{[%clk 0:01:50.8]} 22... Qb5 {[%clk 0:00:02.4]} 23. Rxc8+ {[%clk 0:01:49.3]}
23... Rxc8 {[%clk 0:00:03.3]} 24. d5 {[%clk 0:01:45.1]} 24... Nd7 {[%clk
0:00:03.1]} 25. Bd4 {[%clk 0:01:39.5]} 25... Rc4 {[%clk 0:00:02]} 26. h3 {[%clk
0:01:23.6]} 26... Qa4 {[%clk 0:00:02.3]} 27. Bf2 {[%clk 0:01:08.9]} 27... Rc2
{[%clk 0:00:02.2]} 28. Qf4 {[%clk 0:01:08.6]} 28... Ne5 {[%clk 0:00:02.4]} 29.
Rb1 {[%clk 0:00:52.8]} 29... Qxa2 {[%clk 0:00:02.5]} 30. Rb8+ {[%clk 0:00:51]}
30... Kh7 {[%clk 0:00:02.9]} 31. Qf5+ {[%clk 0:00:51.1]} 31... g6 {[%clk
0:00:03.2]} 32. Qc8 {[%clk 0:00:46.2]} 32... g5 {[%clk 0:00:02]} 33. Qg8# {[%clk
0:00:44.8]} 1-0

[Event "Late-Titled-Tuesday-Blitz-August-29-2023"]
[Site "Chess.com"]
[Date "2023.08.29"]
[Round "11"]
[White "Berardino"]
[Black "HamedWafa4"]
[Result "0-1"]
[WhiteElo "2665"]
[BlackElo "2580"]
[TimeControl "180+1"]
[EndTime "16:02:42 PDT"]
[Termination "HamedWafa4 won on time"]

1. e4 {[%clk 0:03:00.9]} 1... e5 {[%clk 0:02:58.9]} 2. Nf3 {[%clk 0:03:00.8]}
2... Nc6 {[%clk 0:02:59.2]} 3. Bb5 {[%clk 0:03:00.6]} 3... a6 {[%clk 0:02:59.4]}
4. Ba4 {[%clk 0:03:01.2]} 4... Nf6 {[%clk 0:02:59.6]} 5. O-O {[%clk 0:03:01.9]}
5... Be7 {[%clk 0:02:59.8]} 6. Re1 {[%clk 0:03:01.7]} 6... b5 {[%clk 0:03:00.1]}
7. Bb3 {[%clk 0:03:02.2]} 7... O-O {[%clk 0:03:00.9]} 8. c3 {[%clk 0:03:00.4]}
8... d5 {[%clk 0:03:00.9]} 9. exd5 {[%clk 0:03:01]} 9... Nxd5 {[%clk 0:03:01.8]}
10. Nxe5 {[%clk 0:03:01.2]} 10... Nxe5 {[%clk 0:03:02.5]} 11. Rxe5 {[%clk
0:03:01.7]} 11... Nf6 {[%clk 0:03:03.3]} 12. d4 {[%clk 0:02:59.3]} 12... Bd6
{[%clk 0:03:03.7]} 13. Re1 {[%clk 0:02:57.4]} 13... Ng4 {[%clk 0:03:03.9]} 14.
h3 {[%clk 0:02:47.9]} 14... Bh2+ {[%clk 0:03:02.4]} 15. Kf1 {[%clk 0:02:48.1]}
15... Nxf2 {[%clk 0:03:02.4]} 16. Qf3 {[%clk 0:02:24.3]} 16... Nh1 {[%clk
0:03:01.3]} 17. g4 {[%clk 0:02:10.2]} 17... Bb7 {[%clk 0:02:04.8]} 18. d5 {[%clk
0:01:18.3]} 18... Qh4 {[%clk 0:01:31.7]} 19. Qxh1 {[%clk 0:01:13.5]} 19... Rae8
{[%clk 0:01:29.8]} 20. Bd2 {[%clk 0:00:38.3]} 20... Qxh3+ {[%clk 0:01:15.1]} 21.
Qg2 {[%clk 0:00:38.1]} 21... Qd3+ {[%clk 0:01:14.5]} 22. Re2 {[%clk 0:00:32.3]}
22... f5 {[%clk 0:00:32.7]} 23. g5 {[%clk 0:00:28.1]} 23... f4 {[%clk 0:00:32]}
24. Ke1 {[%clk 0:00:07.3]} 24... f3 {[%clk 0:00:28.7]} 25. Qxh2 {[%clk
0:00:01.2]} 25... Rxe2+ {[%clk 0:00:28.4]} 0-1

[Event "Late-Titled-Tuesday-Blitz-August-29-2023"]
[Site "Chess.com"]
[Date "2023.08.29"]
[Round "11"]
[White "ErikRonka"]
[Black "JoshuaGK27"]
[Result "1-0"]
[WhiteElo "2505"]
[BlackElo "2409"]
[TimeControl "180+1"]
[EndTime "16:02:42 PDT"]
[Termination "ErikRonka won on time"]

1. e4 {[%clk 0:03:00.9]} 1... c5 {[%clk 0:02:59.9]} 2. Nf3 {[%clk 0:03:01.2]}
2... d6 {[%clk 0:02:59.9]} 3. d4 {[%clk 0:03:01.7]} 3... cxd4 {[%clk 0:03:00.8]}
4. Nxd4 {[%clk 0:03:02.5]} 4... Nf6 {[%clk 0:03:01.2]} 5. Nc3 {[%clk 0:03:01.8]}
5... a6 {[%clk 0:03:01.7]} 6. Nb3 {[%clk 0:02:55.5]} 6... e6 {[%clk 0:03:00.7]}
7. g4 {[%clk 0:02:55]} 7... b5 {[%clk 0:02:56.4]} 8. Bg2 {[%clk 0:02:51.7]} 8...
Bb7 {[%clk 0:02:53.8]} 9. g5 {[%clk 0:02:51.3]} 9... Nfd7 {[%clk 0:02:51.2]} 10.
f4 {[%clk 0:02:49.4]} 10... Nc6 {[%clk 0:02:37.1]} 11. Be3 {[%clk 0:02:43.4]}
11... h6 {[%clk 0:02:22.5]} 12. g6 {[%clk 0:02:13]} 12... fxg6 {[%clk
0:01:59.4]} 13. O-O {[%clk 0:02:03.4]} 13... Be7 {[%clk 0:01:33.9]} 14. Qg4
{[%clk 0:01:52.7]} 14... Nf8 {[%clk 0:01:23.8]} 15. Rad1 {[%clk 0:01:51.1]}
15... Qc7 {[%clk 0:01:21.7]} 16. a3 {[%clk 0:01:42.7]} 16... h5 {[%clk 0:01:17]}
17. Qe2 {[%clk 0:01:24.6]} 17... O-O-O {[%clk 0:01:10]} 18. a4 {[%clk
0:01:13.6]} 18... b4 {[%clk 0:01:07]} 19. Na2 {[%clk 0:01:13.1]} 19... g5 {[%clk
0:00:59.4]} 20. Nd4 {[%clk 0:01:01.5]} 20... gxf4 {[%clk 0:00:50.2]} 21. Nxc6
{[%clk 0:00:59.5]} 21... Bxc6 {[%clk 0:00:39.7]} 22. Bxf4 {[%clk 0:00:53.6]}
22... a5 {[%clk 0:00:36.1]} 23. c3 {[%clk 0:00:53.4]} 23... b3 {[%clk
0:00:32.3]} 24. Nc1 {[%clk 0:00:52.9]} 24... Ng6 {[%clk 0:00:30.4]} 25. Be3
{[%clk 0:00:46.7]} 25... Ne5 {[%clk 0:00:12.9]} 26. Nxb3 {[%clk 0:00:43.3]}
26... Bb7 {[%clk 0:00:13.1]} 27. Nd4 {[%clk 0:00:41.3]} 27... Qc4 {[%clk
0:00:10.2]} 28. Qc2 {[%clk 0:00:35.7]} 28... Bf6 {[%clk 0:00:05.8]} 29. b3
{[%clk 0:00:35.5]} 29... Qc5 {[%clk 0:00:03.6]} 30. Rfe1 {[%clk 0:00:33]} 1-0

[Event "Late-Titled-Tuesday-Blitz-August-29-2023"]
[Site "Chess.com"]
[Date "2023.08.29"]
[Round "11"]
[White "MathiasCasalaspro"]
[Black "Onthequiet"]
[Result "0-1"]
[WhiteElo "2261"]
[BlackElo "2369"]
[TimeControl "180+1"]
[EndTime "16:02:42 PDT"]
[Termination "Onthequiet won by resignation"]

1. e4 {[%clk 0:03:00.9]} 1... c6 {[%clk 0:02:48.1]} 2. d4 {[%clk 0:03:00.6]}
2... d5 {[%clk 0:02:48.5]} 3. Nc3 {[%clk 0:03:01.5]} 3... dxe4 {[%clk
0:02:48.4]} 4. Nxe4 {[%clk 0:03:02.4]} 4... Nf6 {[%clk 0:02:47.6]} 5. Nxf6+
{[%clk 0:03:01.7]} 5... exf6 {[%clk 0:02:47.6]} 6. Be3 {[%clk 0:03:02.6]} 6...
Bd6 {[%clk 0:02:47.1]} 7. Bd3 {[%clk 0:03:03.3]} 7... O-O {[%clk 0:02:46.5]} 8.
Ne2 {[%clk 0:03:04]} 8... Re8 {[%clk 0:02:46.5]} 9. c4 {[%clk 0:03:04.4]} 9...
Na6 {[%clk 0:02:46.4]} 10. a3 {[%clk 0:03:04]} 10... Nc7 {[%clk 0:02:45.6]} 11.
Qc2 {[%clk 0:03:03.8]} 11... h6 {[%clk 0:02:43.6]} 12. O-O-O {[%clk 0:03:01.2]}
12... b6 {[%clk 0:02:43.5]} 13. h4 {[%clk 0:02:45.5]} 13... Bg4 {[%clk
0:02:42.7]} 14. Bf5 {[%clk 0:02:41.3]} 14... Bxe2 {[%clk 0:02:30.1]} 15. Qxe2
{[%clk 0:02:40.3]} 15... Bf4 {[%clk 0:02:29.5]} 16. Qf3 {[%clk 0:02:36]} 16...
Bxe3+ {[%clk 0:02:29.2]} 17. fxe3 {[%clk 0:02:36.9]} 17... Qd6 {[%clk
0:02:10.9]} 18. h5 {[%clk 0:02:28.7]} 18... Ne6 {[%clk 0:02:01.6]} 19. Bxe6
{[%clk 0:02:17]} 19... Qxe6 {[%clk 0:01:56.8]} 20. Rh3 {[%clk 0:02:15.7]} 20...
Rad8 {[%clk 0:01:55.4]} 21. Qe2 {[%clk 0:01:29.5]} 21... f5 {[%clk 0:01:45.1]}
22. Qd3 {[%clk 0:01:27.2]} 22... b5 {[%clk 0:01:32.5]} 23. c5 {[%clk 0:01:11.8]}
23... Rd5 {[%clk 0:01:21.2]} 24. Kb1 {[%clk 0:01:08.8]} 24... Red8 {[%clk
0:01:20.4]} 25. Qc2 {[%clk 0:01:02.1]} 25... f4 {[%clk 0:01:14.4]} 26. Re1
{[%clk 0:00:53.2]} 26... Rxd4 {[%clk 0:01:08.8]} 27. exd4 {[%clk 0:00:33]} 27...
Qxe1+ {[%clk 0:01:07.6]} 28. Ka2 {[%clk 0:00:33.7]} 28... Rxd4 {[%clk 0:01:02]}
29. Rf3 {[%clk 0:00:15.3]} 29... a5 {[%clk 0:00:50.6]} 30. Rf2 {[%clk
0:00:08.6]} 30... Qe6+ {[%clk 0:00:46.7]} 31. b3 {[%clk 0:00:08.6]} 31... a4
{[%clk 0:00:45.6]} 32. Rf3 {[%clk 0:00:04.4]} 32... Qd5 {[%clk 0:00:40.7]} 33.
Kb2 {[%clk 0:00:03.5]} 33... Rd2 {[%clk 0:00:40.1]} 0-1

[Event "Late-Titled-Tuesday-Blitz-August-29-2023"]
[Site "Chess.com"]
[Date "2023.08.29"]
[Round "11"]
[White "Alexei_Gubajdullin"]
[Black "NMJeevanK"]
[Result "0-1"]
[WhiteElo "2601"]
[BlackElo "2532"]
[TimeControl "180+1"]
[EndTime "16:02:44 PDT"]
[Termination "NMJeevanK won by checkmate"]

1. d4 {[%clk 0:02:59.1]} 1... g6 {[%clk 0:02:57.9]} 2. Nf3 {[%clk 0:02:58.6]}
2... Bg7 {[%clk 0:02:58.1]} 3. Bf4 {[%clk 0:02:57.7]} 3... d6 {[%clk 0:02:58.1]}
4. e3 {[%clk 0:02:57.9]} 4... Nd7 {[%clk 0:02:58.7]} 5. Be2 {[%clk 0:02:58.2]}
5... e5 {[%clk 0:02:59]} 6. Bg5 {[%clk 0:02:57.7]} 6... f6 {[%clk 0:02:56.9]} 7.
Bh4 {[%clk 0:02:56.1]} 7... Nh6 {[%clk 0:02:57.5]} 8. dxe5 {[%clk 0:02:54.7]}
8... dxe5 {[%clk 0:02:54.1]} 9. e4 {[%clk 0:02:54.7]} 9... O-O {[%clk
0:02:51.5]} 10. Nc3 {[%clk 0:02:51.3]} 10... c6 {[%clk 0:02:50.5]} 11. a4 {[%clk
0:02:45.4]} 11... Qb6 {[%clk 0:02:42.2]} 12. O-O {[%clk 0:02:41.5]} 12... Qxb2
{[%clk 0:02:37.7]} 13. Qd2 {[%clk 0:02:25.5]} 13... Qb4 {[%clk 0:02:30.4]} 14.
Rfb1 {[%clk 0:02:20.3]} 14... Qa5 {[%clk 0:02:26.7]} 15. Qd3 {[%clk 0:02:13.8]}
15... Nc5 {[%clk 0:02:26]} 16. Qe3 {[%clk 0:02:10]} 16... Be6 {[%clk 0:02:19.6]}
17. Nd1 {[%clk 0:02:02.2]} 17... Rad8 {[%clk 0:02:15.4]} 18. Nb2 {[%clk
0:01:56.4]} 18... Ng4 {[%clk 0:02:10.8]} 19. Qa3 {[%clk 0:01:51.9]} 19... Nxe4
{[%clk 0:02:08.3]} 20. Nc4 {[%clk 0:01:49.8]} 20... Qc7 {[%clk 0:01:59.9]} 21.
h3 {[%clk 0:01:43.3]} 21... Nh6 {[%clk 0:02:00]} 22. Qe3 {[%clk 0:01:40.9]}
22... Nd6 {[%clk 0:01:55.6]} 23. Nxd6 {[%clk 0:01:32.9]} 23... Rxd6 {[%clk
0:01:54.4]} 24. Qxa7 {[%clk 0:01:30.3]} 24... Rd7 {[%clk 0:01:52.7]} 25. a5
{[%clk 0:01:25.6]} 25... Nf5 {[%clk 0:01:49.2]} 26. Bg3 {[%clk 0:01:17.8]} 26...
Nxg3 {[%clk 0:01:44.1]} 27. fxg3 {[%clk 0:01:13.8]} 27... e4 {[%clk 0:01:44.8]}
28. Ne1 {[%clk 0:01:07]} 28... Qxg3 {[%clk 0:01:39]} 29. Rxb7 {[%clk 0:00:58.8]}
29... Rxb7 {[%clk 0:01:23]} 30. Qxb7 {[%clk 0:00:57.2]} 30... f5 {[%clk
0:01:18.7]} 31. Qxc6 {[%clk 0:00:55.2]} 31... Bd4+ {[%clk 0:01:13.1]} 32. Kh1
{[%clk 0:00:50.7]} 32... Bxa1 {[%clk 0:01:12.8]} 33. Qxe6+ {[%clk 0:00:49.1]}
33... Kg7 {[%clk 0:01:10.2]} 34. Qd7+ {[%clk 0:00:43.6]} 34... Rf7 {[%clk
0:01:10.4]} 35. Qd2 {[%clk 0:00:41.2]} 35... Bc3 {[%clk 0:01:10.2]} 36. Qd5
{[%clk 0:00:35.6]} 36... Qxe1+ {[%clk 0:01:06.8]} 37. Kh2 {[%clk 0:00:35.5]}
37... Qxe2 {[%clk 0:01:05.1]} 38. a6 {[%clk 0:00:33.8]} 38... f4 {[%clk
0:01:03.8]} 39. a7 {[%clk 0:00:28.5]} 39... f3 {[%clk 0:01:01]} 40. Qg5 {[%clk
0:00:24]} 40... fxg2 {[%clk 0:00:47.1]} 41. a8=Q {[%clk 0:00:18.7]} 41... g1=Q+
{[%clk 0:00:46.9]} 42. Kxg1 {[%clk 0:00:15.4]} 42... Rf1# {[%clk 0:00:46.7]} 0-1